[Event "24th Mediterranean Flower 2024"]
[Site "Rijeka"]
[Date "2024.03.05"]
[Round "4.1"]
[White "Skuhala, Barbara"]
[Black "Radikovic, Anamarija"]
[Result "1-0"]
[ECO "B90"]
[WhiteElo "2188"]
[BlackElo "2039"]
[Annotator "RC"]
[PlyCount "107"]
[EventDate "2024.03.04"]
[EventType "tourn"]
[EventCountry "CRO"]
[SourceTitle "playchess.com"]
[Source "ChessBase"]
[SourceQuality "1"]
[TimeControl "5400+30"]

1. e4 {[%emt 0:00:02]} c5 {[%emt 0:00:04]} 2. Nf3 {[%emt 0:00:06]} d6 {[%emt 0:00:05]} 3. Nc3 {[%emt 0:00:17]} Nf6 {[%emt 0:00:05]} 4. d4 {[%emt 0:00:30]} cxd4 {[%emt 0:00:30]} 5. Nxd4 {[%emt 0:00:30]} a6 {[%emt 0:00:30]} 6. Be3 {[%emt 0:00:30]} e5 {[%emt 0:00:30]} 7. Nb3 {[%emt 0:00:30]} Be6 {[%emt 0:00:30]} 8. h3 {[%emt 0:00:30]} Be7 {[%emt 0:00:00]} 9. g4 {[%emt 0:01:46]} d5 {[%emt 0:00:00]} 10. exd5 {[%emt 0:01:27]} Nxd5 {[%emt 0:00:00]} 11. Nxd5 {[%emt 0:09:45]} Bxd5 {[%emt 0:00:00]} 12. Rg1 {[%emt 0:00:56]} Nc6 {[%emt 0:00:54]} 13. Qd2 {[%emt 0:05:41]} Rc8 {[%emt 0:15:28]} 14. c3 {[%emt 0:15:44]} O-O {[%emt 0:05:19]} 15. Rd1 {[%emt 0:07:30]} Be6 {[%emt 0:01:58]} 16. Qxd8 {[%emt 0:03:43]} Rcxd8 {[%emt 0:00:06]} 17. Bb6 {[%emt 0:02:02]} Rxd1+ {[%emt 0:04:36]} 18. Kxd1 {[%emt 0:01:41]} f5 {[%emt 0:04:03]} 19. Be2 {[%emt 0:18:55]} Bd8 {[%emt 0:14:16]} 20. Be3 {[%emt 0:07:14]} f4 {[%emt 0:13:37]} 21. Bc5 {[%emt 0:00:06]} Rf7 {[%emt 0:00:20]} 22. Bf3 {[%emt 0:01:31]} Rd7+ {[%emt 0:00:48]} 23. Kc2 {[%emt 0:03:06]} Bc4 {[%emt 0:04:10]} 24. Be4 {[%emt 0:02:28]} g6 {[%emt 0:00:31]} 25. Re1 {[%emt 0:05:27]} Bc7 {[%emt 0:15:00]} 26. f3 {[%emt 0:02:47]} Nd8 {[%emt 0:02:40]} 27. Bf2 {[%emt 0:01:01]} b6 {[%emt 0:04:31]} 28. Nd2 {[%emt 0:01:00]} Bf7 {[%emt 0:01:24]} 29. Bd3 {[%emt 0:00:54]} b5 {[%emt 0:01:22]} 30. a4 {[%emt 0:00:31]} bxa4 {[%emt 0:03:07]} 31. Bxa6 {[%emt 0:01:17]} Ne6 {[%emt 0:01:00]} 32. Ne4 {[%emt 0:00:21]} Rd8 {[%emt 0:00:43]} 33. Bb5 {[%emt 0:01:19]} Nf8 {[%emt 0:02:59]} 34. Bxa4 {[%emt 0:01:48]} Bc4 {[%emt 0:00:26]} 35. Bc6 {[%emt 0:02:14]} Ne6 {[%emt 0:02:08]} 36. h4 {[%emt 0:00:20]} Kf7 {[%emt 0:00:53]} 37. b3 {[%emt 0:02:24]} Bd3+ {[%emt 0:00:04]} 38. Kc1 {[%emt 0:00:07]} Kg7 {[%emt 0:01:58]} 39. b4 {[%emt 0:00:46]} Bd6 {[%emt 0:01:51]} 40. Nxd6 {[%emt 0:00:39]} Rxd6 {[%emt 0:00:05]} 41. Ba4 {[%emt 0:00:38]} e4 42. fxe4 {[%emt 0:00:17]} f3 {[%emt 0:02:09]} 43. Bd1 {[%emt 0:00:21]} Ra6 {[%emt 0:00:39]} 44. Kb2 {[%emt 0:00:57]} Nf4 {[%emt 0:00:16]} 45. Bd4+ {[%emt 0:00:22]} Kf8 {[%emt 0:00:07]} 46. Bxf3 {[%emt 0:00:42]} Bc4 {[%emt 0:00:03]} 47. Ra1 {[%emt 0:00:24]} Nd3+ {[%emt 0:00:54]} 48. Kb1 {[%emt 0:00:06]} Re6 {[%emt 0:00:58]} 49. Ra8+ {[%emt 0:00:13]} Ke7 {[%emt 0:00:09]} 50. Ra7+ {[%emt 0:00:27]} Kd8 {[%emt 0:00:07]} 51. Rxh7 {[%emt 0:00:48]} Ne1 {[%emt 0:01:12]} 52. Bh1 {[%emt 0:00:07]} Ra6 {[%emt 0:00:31]} 53. Ra7 {[%emt 0:00:24]} Bd3+ {[%emt 0:00:33]} 54. Kc1 {[%emt 0:00:35]} 1-0

[Event "24th Mediterranean Flower 2024"]
[Site "Rijeka"]
[Date "2024.03.05"]
[Round "4.2"]
[White "Ivekovic, Tihana"]
[Black "Hamdouchi, Adina-Maria"]
[Result "1/2-1/2"]
[ECO "A88"]
[WhiteElo "2081"]
[BlackElo "2213"]
[Annotator "RC"]
[PlyCount "48"]
[EventDate "2024.03.04"]
[EventType "tourn"]
[EventCountry "CRO"]
[SourceTitle "playchess.com"]
[Source "ChessBase"]
[SourceQuality "1"]
[TimeControl "5400+30"]

1. d4 {[%emt 0:00:02]} d6 {[%emt 0:00:06]} 2. c4 {[%emt 0:00:06]} f5 {[%emt 0:00:13]} 3. Nf3 {[%emt 0:00:38]} Nf6 {[%emt 0:00:07]} 4. Nc3 {[%emt 0:00:36]} g6 {[%emt 0:00:09]} 5. Qc2 {[%emt 0:00:28]} Bg7 {[%emt 0:00:33]} 6. g3 {[%emt 0:02:54]} O-O {[%emt 0:00:44]} 7. Bg2 {[%emt 0:00:27]} c6 {[%emt 0:02:21]} 8. O-O {[%emt 0:02:20]} Qc7 {[%emt 0:00:22]} 9. d5 {[%emt 0:07:53]} e5 {[%emt 0:10:07]} 10. dxe6 {[%emt 0:04:39]} Bxe6 {[%emt 0:00:15]} 11. b3 {[%emt 0:04:48]} a5 {[%emt 0:00:49]} 12. Bb2 {[%emt 0:05:12]} Na6 {[%emt 0:04:46]} 13. Ng5 {[%emt 0:03:55]} Bd7 {[%emt 0:01:03]} 14. Rad1 {[%emt 0:00:46]} h6 {[%emt 0:02:41]} 15. Nf3 {[%emt 0:00:59]} Nc5 {[%emt 0:04:12]} 16. Nh4 {[%emt 0:16:17]} Be8 {[%emt 0:03:08]} 17. Ba3 {[%emt 0:02:04]} Rd8 {[%emt 0:14:40]} 18. Bxc5 {[%emt 0:07:20]} dxc5 {[%emt 0:00:18]} 19. Rxd8 {[%emt 0:00:06]} Qxd8 {[%emt 0:00:06]} 20. e4 {[%emt 0:00:05]} fxe4 {[%emt 0:10:21]} 21. Nxe4 {[%emt 0:00:09]} Qe7 {[%emt 0:00:52]} 22. Qd3 {[%emt 0:02:19]} Bf7 {[%emt 0:08:45]} 23. Qd6 {[%emt 0:02:35]} Qxd6 {[%emt 0:00:29]} 24. Nxd6 {[%emt 0:00:05]} Rb8 {[%emt 0:35:23]} 1/2-1/2

[Event "24th Mediterranean Flower 2024"]
[Site "Rijeka"]
[Date "2024.03.05"]
[Round "4.3"]
[White "Zagorac, Lara"]
[Black "Medic, Mirjana"]
[Result "1/2-1/2"]
[ECO "E19"]
[WhiteElo "1894"]
[BlackElo "2132"]
[Annotator "RC"]
[PlyCount "108"]
[EventDate "2024.03.04"]
[EventType "tourn"]
[EventCountry "CRO"]
[SourceTitle "playchess.com"]
[Source "ChessBase"]
[SourceQuality "1"]
[TimeControl "5400+30"]

1. Nf3 {[%emt 0:00:10]} Nf6 {[%emt 0:00:21]} 2. g3 {[%emt 0:00:31]} b6 {[%emt 0:01:19]} 3. Bg2 {[%emt 0:00:34]} Bb7 {[%emt 0:00:05]} 4. O-O {[%emt 0:00:21]} e6 {[%emt 0:00:47]} 5. d4 {[%emt 0:00:15]} Be7 {[%emt 0:01:19]} 6. c4 {[%emt 0:00:14]} O-O {[%emt 0:01:10]} 7. Nc3 {[%emt 0:00:10]} Ne4 {[%emt 0:04:41]} 8. Qc2 {[%emt 0:04:12]} f5 {[%emt 0:05:27]} 9. b3 {[%emt 0:05:46]} Nxc3 {[%emt 0:09:52]} 10. Qxc3 {[%emt 0:01:51]} Bf6 {[%emt 0:00:30]} 11. Bb2 {[%emt 0:02:03]} d6 {[%emt 0:00:30]} 12. Qd2 {[%emt 0:02:22]} Nd7 {[%emt 0:01:05]} 13. Rac1 {[%emt 0:01:29]} Qe7 {[%emt 0:04:06]} 14. Rfd1 {[%emt 0:04:01]} Rad8 {[%emt 0:01:14]} 15. Ba3 {[%emt 0:13:03]} Be4 {[%emt 0:04:21]} 16. h4 {[%emt 0:10:43]} h6 {[%emt 0:01:38]} 17. b4 {[%emt 0:04:00]} Rfe8 {[%emt 0:04:07]} 18. c5 {[%emt 0:11:18]} dxc5 {[%emt 0:06:58]} 19. bxc5 {[%emt 0:01:35]} c6 {[%emt 0:00:14]} 20. Qe3 {[%emt 0:02:19]} b5 {[%emt 0:00:44]} 21. Ne5 {[%emt 0:04:12]} Bxg2 {[%emt 0:12:16]} 22. Kxg2 {[%emt 0:00:31]} Rc8 {[%emt 0:00:12]} 23. Bb2 {[%emt 0:02:15]} Nb8 {[%emt 0:01:37]} 24. Qf3 {[%emt 0:01:42]} Red8 {[%emt 0:00:18]} 25. Ba3 {[%emt 0:01:58]} Rd5 {[%emt 0:00:59]} 26. Qc3 {[%emt 0:04:58]} Qc7 {[%emt 0:02:27]} 27. Nf3 {[%emt 0:01:32]} a5 {[%emt 0:00:28]} 28. Qc2 {[%emt 0:00:48]} Rcd8 {[%emt 0:01:18]} 29. e3 {[%emt 0:00:36]} Nd7 {[%emt 0:02:44]} 30. Bb2 {[%emt 0:02:06]} Nf8 {[%emt 0:00:34]} 31. Ng1 {[%emt 0:02:04]} a4 {[%emt 0:01:23]} 32. f4 {[%emt 0:00:50]} Ra8 {[%emt 0:00:45]} 33. a3 {[%emt 0:00:27]} Qf7 {[%emt 0:01:24]} 34. Bc3 {[%emt 0:01:06]} Bd8 {[%emt 0:00:20]} 35. Nf3 {[%emt 0:00:37]} Bc7 {[%emt 0:00:25]} 36. Bb4 {[%emt 0:00:38]} Nh7 {[%emt 0:00:42]} 37. Ne1 {[%emt 0:00:46]} Nf6 {[%emt 0:00:09]} 38. Nd3 {[%emt 0:00:50]} Rdd8 {[%emt 0:04:51]} 39. Qe2 {[%emt 0:02:07]} Qe8 {[%emt 0:00:57]} 40. Be1 {[%emt 0:01:14]} Qd7 {[%emt 0:00:24]} 41. Nb4 {[%emt 0:01:04]} Ba5 {[%emt 0:00:54]} 42. Nd3 {[%emt 0:00:23]} Bc7 {[%emt 0:01:06]} 43. Nb4 {[%emt 0:00:11]} Nd5 {[%emt 0:02:24]} 44. Qf3 {[%emt 0:01:23]} Nxb4 {[%emt 0:01:55]} 45. Bxb4 {[%emt 0:00:05]} Qd5 {[%emt 0:00:08]} 46. Rb1 {[%emt 0:00:39]} Kf7 {[%emt 0:01:35]} 47. h5 {[%emt 0:00:54]} Ba5 {[%emt 0:08:58]} 48. Qxd5 {[%emt 0:01:29]} exd5 {[%emt 0:00:21]} 49. Bxa5 {[%emt 0:00:05]} Rxa5 {[%emt 0:00:06]} 50. Kf3 {[%emt 0:00:13]} Ra7 {[%emt 0:01:06]} 51. Rd3 {[%emt 0:00:36]} Re7 {[%emt 0:01:48]} 52. g4 {[%emt 0:11:14]} fxg4+ 53. Kxg4 {[%emt 0:00:30]} Rde8 54. Kf3 {[%emt 0:00:30]} Re6 {[%emt 0:12:28]} 1/2-1/2

[Event "24th Mediterranean Flower 2024"]
[Site "Rijeka"]
[Date "2024.03.05"]
[Round "4.4"]
[White "Urh, Zala"]
[Black "Mihaljevic, Eva"]
[Result "1/2-1/2"]
[ECO "E05"]
[WhiteElo "2287"]
[BlackElo "1946"]
[Annotator "RC"]
[PlyCount "129"]
[EventDate "2024.03.04"]
[EventType "tourn"]
[EventCountry "CRO"]
[SourceTitle "playchess.com"]
[Source "ChessBase"]
[SourceQuality "1"]
[TimeControl "5400+30"]

1. d4 {[%emt 0:00:05]} d5 {[%emt 0:00:06]} 2. c4 {[%emt 0:00:10]} e6 {[%emt 0:00:07]} 3. Nf3 {[%emt 0:00:04]} Nf6 {[%emt 0:00:07]} 4. g3 {[%emt 0:00:04]} Be7 {[%emt 0:00:20]} 5. Bg2 {[%emt 0:00:23]} O-O {[%emt 0:00:17]} 6. O-O {[%emt 0:00:08]} dxc4 {[%emt 0:00:28]} 7. Qc2 {[%emt 0:00:41]} a6 {[%emt 0:00:14]} 8. a4 {[%emt 0:00:23]} Bd7 {[%emt 0:00:37]} 9. Qxc4 {[%emt 0:00:26]} Bc6 {[%emt 0:00:22]} 10. Bg5 {[%emt 0:00:54]} Bd5 {[%emt 0:04:11]} 11. Qc2 {[%emt 0:00:46]} Be4 {[%emt 0:00:30]} 12. Qd1 {[%emt 0:00:21]} h6 {[%emt 0:01:13]} 13. Bxf6 {[%emt 0:00:52]} Bxf6 {[%emt 0:00:08]} 14. Nc3 {[%emt 0:01:05]} Bxf3 {[%emt 0:01:22]} 15. Bxf3 {[%emt 0:00:07]} c6 {[%emt 0:00:34]} 16. Qb3 {[%emt 0:00:46]} Qc7 {[%emt 0:02:32]} 17. Rfd1 {[%emt 0:02:00]} Rd8 {[%emt 0:01:22]} 18. Ne4 {[%emt 0:14:12]} Be7 {[%emt 0:31:44]} 19. a5 {[%emt 0:01:26]} Nd7 {[%emt 0:00:20]} 20. e3 {[%emt 0:07:05]} Rab8 {[%emt 0:06:19]} 21. Rdc1 {[%emt 0:11:34]} Nf6 {[%emt 0:05:42]} 22. Nc3 {[%emt 0:27:04]} Qd6 {[%emt 0:04:51]} 23. Rd1 {[%emt 0:03:24]} c5 {[%emt 0:21:49]} 24. Na4 {[%emt 0:06:22]} cxd4 {[%emt 0:01:56]} 25. Rxd4 {[%emt 0:00:07]} Qe5 {[%emt 0:01:59]} 26. Rxd8+ {[%emt 0:00:32]} Bxd8 {[%emt 0:01:53]} 27. Nb6 {[%emt 0:00:21]} Qf5 {[%emt 0:01:51]} 28. Kg2 {[%emt 0:02:05]} Ne4 {[%emt 0:01:07]} 29. Qb4 {[%emt 0:08:19]} Ng5 {[%emt 0:01:13]} 30. Bg4 {[%emt 0:00:06]} Qe4+ {[%emt 0:03:51]} 31. Qxe4 {[%emt 0:00:07]} Nxe4 {[%emt 0:00:02]} 32. Rd1 {[%emt 0:06:58]} Be7 {[%emt 0:02:16]} 33. Bf3 {[%emt 0:02:57]} Nf6 {[%emt 0:03:34]} 34. b3 {[%emt 0:03:44]} Bb4 {[%emt 0:01:09]} 35. Nc4 {[%emt 0:00:01]} Bc5 {[%emt 0:00:34]} 36. e4 {[%emt 0:01:10]} Nh7 {[%emt 0:01:17]} 37. h4 {[%emt 0:00:41]} g5 {[%emt 0:00:13]} 38. e5 {[%emt 0:00:40]} Nf8 {[%emt 0:00:13]} 39. Nd6 {[%emt 0:01:08]} b6 {[%emt 0:00:17]} 40. Ne4 {[%emt 0:00:26]} Be7 {[%emt 0:00:18]} 41. hxg5 {[%emt 0:00:43]} hxg5 {[%emt 0:00:06]} 42. axb6 {[%emt 0:00:19]} Rxb6 {[%emt 0:00:04]} 43. Be2 {[%emt 0:00:11]} Rxb3 {[%emt 0:00:24]} 44. Bxa6 {[%emt 0:00:04]} Ra3 {[%emt 0:01:15]} 45. Be2 {[%emt 0:00:17]} Ra5 {[%emt 0:00:26]} 46. f4 {[%emt 0:00:26]} Ng6 {[%emt 0:01:03]} 47. Kf3 {[%emt 0:00:32]} gxf4 {[%emt 0:00:18]} 48. gxf4 {[%emt 0:00:04]} Ra2 {[%emt 0:00:51]} 49. Bf1 {[%emt 0:01:51]} Kg7 {[%emt 0:00:53]} 50. Rd4 {[%emt 0:00:40]} Nh4+ {[%emt 0:00:31]} 51. Kg4 {[%emt 0:00:20]} Nf5 {[%emt 0:00:17]} 52. Rd3 {[%emt 0:00:06]} Ra1 {[%emt 0:00:25]} 53. Bh3 {[%emt 0:00:47]} Rg1+ {[%emt 0:00:27]} 54. Kf3 {[%emt 0:00:15]} Nh4+ {[%emt 0:00:23]} 55. Kf2 {[%emt 0:00:16]} Ra1 {[%emt 0:00:46]} 56. Rd7 {[%emt 0:00:56]} Ng6 {[%emt 0:00:11]} 57. f5 {[%emt 0:00:51]} exf5 {[%emt 0:00:22]} 58. Bxf5 {[%emt 0:00:01]} Bh4+ {[%emt 0:00:02]} 59. Ke2 {[%emt 0:00:43]} Nxe5 {[%emt 0:00:13]} 60. Rd5 {[%emt 0:00:42]} Re1+ {[%emt 0:00:46]} 61. Kd2 {[%emt 0:00:07]} Nf3+ {[%emt 0:00:30]} 62. Kc2 {[%emt 0:00:43]} Ng5 {[%emt 0:00:37]} 63. Nxg5 {[%emt 0:00:40]} Bxg5 {[%emt 0:00:02]} 64. Bd7 {[%emt 0:00:25]} Kg6 {[%emt 0:00:41]} 65. Kd3 {[%emt 0:00:27]} 1/2-1/2

[Event "24th Mediterranean Flower 2024"]
[Site "Rijeka"]
[Date "2024.03.05"]
[Round "4.5"]
[White "Hnatyshyn, Anastasiia"]
[Black "Berke, Ana"]
[Result "1-0"]
[ECO "B42"]
[WhiteElo "2178"]
[BlackElo "2066"]
[Annotator "RC"]
[PlyCount "45"]
[EventDate "2024.03.04"]
[EventType "tourn"]
[EventCountry "CRO"]
[SourceTitle "playchess.com"]
[Source "ChessBase"]
[SourceQuality "1"]
[TimeControl "5400+30"]

1. e4 {[%emt 0:00:02]} c5 {[%emt 0:00:07]} 2. Nf3 {[%emt 0:00:07]} e6 {[%emt 0:00:17]} 3. d4 {[%emt 0:00:06]} cxd4 {[%emt 0:00:13]} 4. Nxd4 {[%emt 0:00:06]} a6 {[%emt 0:00:04]} 5. Bd3 {[%emt 0:00:13]} b5 {[%emt 0:00:29]} 6. Be3 {[%emt 0:01:12]} Bb7 {[%emt 0:00:19]} 7. O-O {[%emt 0:00:51]} Nc6 {[%emt 0:00:17]} 8. Nd2 {[%emt 0:05:13]} Qc7 {[%emt 0:02:05]} 9. c3 {[%emt 0:02:10]} Bd6 {[%emt 0:06:32]} 10. f4 {[%emt 0:04:27]} e5 {[%emt 0:03:48]} 11. Nxc6 {[%emt 0:04:28]} Bxc6 {[%emt 0:03:08]} 12. Nf3 {[%emt 0:03:24]} f6 {[%emt 0:11:53]} 13. fxe5 {[%emt 0:05:04]} fxe5 {[%emt 0:00:21]} 14. Ng5 {[%emt 0:08:12]} Ne7 {[%emt 0:01:08]} 15. Nf7 {[%emt 0:08:40]} Rf8 {[%emt 0:05:58]} 16. Bc4 {[%emt 0:01:40]} Nc8 {[%emt 0:05:39]} 17. Qh5 {[%emt 0:09:56]} g6 {[%emt 0:01:12]} 18. Qxh7 {[%emt 0:00:26]} Bxe4 {[%emt 0:01:05]} 19. Nxd6+ {[%emt 0:03:12]} Qxd6 {[%emt 0:01:45]} 20. Rad1 {[%emt 0:01:15]} Rxf1+ {[%emt 0:06:46]} 21. Rxf1 {[%emt 0:00:19]} Bf5 {[%emt 0:02:59]} 22. Qg8+ {[%emt 0:00:21]} Qf8 {[%emt 0:00:41]} 23. Bf7+ {[%emt 0:00:07]} 1-0

[Event "24th Mediterranean Flower 2024"]
[Site "Rijeka"]
[Date "2024.03.06"]
[Round "5.2"]
[White "Mihaljevic, Eva"]
[Black "Hnatyshyn, Anastasiia"]
[Result "1/2-1/2"]
[ECO "C07"]
[WhiteElo "1946"]
[BlackElo "2178"]
[Annotator "RC"]
[PlyCount "51"]
[EventDate "2024.03.04"]
[EventType "tourn"]
[EventCountry "CRO"]
[SourceTitle "playchess.com"]
[Source "ChessBase"]
[SourceQuality "1"]
[TimeControl "5400+30"]

1. e4 {[%emt 0:00:02]} e6 {[%emt 0:00:04]} 2. d4 {[%emt 0:00:05]} d5 {[%emt 0:00:04]} 3. Nd2 {[%emt 0:00:05]} c5 {[%emt 0:00:05]} 4. exd5 {[%emt 0:00:30]} Qxd5 {[%emt 0:00:05]} 5. Ngf3 {[%emt 0:00:20]} cxd4 {[%emt 0:00:15]} 6. Bc4 {[%emt 0:00:08]} Qd7 {[%emt 0:00:06]} 7. O-O {[%emt 0:00:31]} Nc6 {[%emt 0:00:09]} 8. Nb3 {[%emt 0:00:21]} a6 {[%emt 0:00:11]} 9. Nbxd4 {[%emt 0:00:42]} Nxd4 {[%emt 0:00:07]} 10. Nxd4 {[%emt 0:00:21]} Qc7 {[%emt 0:00:21]} 11. Qe2 {[%emt 0:00:40]} Bd6 {[%emt 0:03:58]} 12. h3 {[%emt 0:00:42]} Ne7 {[%emt 0:02:18]} 13. Bg5 {[%emt 0:03:53]} O-O {[%emt 0:02:02]} 14. Rad1 {[%emt 0:06:09]} Ng6 {[%emt 0:09:37]} 15. Bb3 {[%emt 0:06:11]} b5 {[%emt 0:04:54]} 16. c3 {[%emt 0:06:01]} Bf4 {[%emt 0:13:38]} 17. Bxf4 {[%emt 0:22:50]} Nxf4 {[%emt 0:00:28]} 18. Qe3 {[%emt 0:03:13]} Bb7 {[%emt 0:07:09]} 19. f3 {[%emt 0:02:22]} Rac8 {[%emt 0:05:24]} 20. Rfe1 {[%emt 0:07:23]} Ng6 {[%emt 0:09:33]} 21. Bc2 {[%emt 0:02:28]} Qg3 {[%emt 0:05:12]} 22. Ne2 {[%emt 0:01:55]} Qe5 {[%emt 0:03:22]} 23. Nd4 {[%emt 0:03:29]} Qg3 {[%emt 0:02:48]} 24. Ne2 {[%emt 0:01:13]} Qe5 {[%emt 0:07:43]} 25. Nd4 {[%emt 0:01:20]} Qg3 {[%emt 0:02:07]} 26. Ne2 {[%emt 0:30:36]} 1/2-1/2

[Event "24th Mediterranean Flower 2024"]
[Site "Rijeka"]
[Date "2024.03.06"]
[Round "5.3"]
[White "Medic, Mirjana"]
[Black "Urh, Zala"]
[Result "0-1"]
[ECO "D76"]
[WhiteElo "2132"]
[BlackElo "2287"]
[Annotator "RC"]
[PlyCount "202"]
[EventDate "2024.03.04"]
[EventType "tourn"]
[EventCountry "CRO"]
[SourceTitle "playchess.com"]
[Source "ChessBase"]
[SourceQuality "1"]
[TimeControl "5400+30"]

1. d4 {[%emt 0:00:02]} Nf6 {[%emt 0:00:15]} 2. c4 {[%emt 0:00:08]} g6 {[%emt 0:00:11]} 3. Nf3 {[%emt 0:00:12]} Bg7 {[%emt 0:00:27]} 4. g3 {[%emt 0:00:05]} d5 {[%emt 0:01:07]} 5. cxd5 {[%emt 0:00:09]} Nxd5 {[%emt 0:00:05]} 6. Bg2 {[%emt 0:00:10]} Nb6 {[%emt 0:00:16]} 7. Nc3 {[%emt 0:00:36]} Nc6 {[%emt 0:01:09]} 8. e3 {[%emt 0:01:37]} O-O {[%emt 0:00:29]} 9. O-O {[%emt 0:00:04]} Re8 {[%emt 0:00:53]} 10. d5 {[%emt 0:07:08]} Na5 {[%emt 0:01:26]} 11. e4 {[%emt 0:00:09]} c6 {[%emt 0:00:41]} 12. Nd4 {[%emt 0:01:36]} cxd5 {[%emt 0:11:52]} 13. exd5 {[%emt 0:09:18]} e6 {[%emt 0:05:51]} 14. Nb3 {[%emt 0:00:41]} Bxc3 {[%emt 0:13:02]} 15. bxc3 {[%emt 0:00:06]} Nxd5 {[%emt 0:00:24]} 16. Nxa5 {[%emt 0:15:15]} Qxa5 {[%emt 0:00:09]} 17. Bd2 {[%emt 0:00:41]} Qc5 {[%emt 0:06:35]} 18. Qb3 {[%emt 0:02:35]} b5 {[%emt 0:07:28]} 19. Rac1 {[%emt 0:06:06]} Ba6 {[%emt 0:06:51]} 20. Rfe1 {[%emt 0:02:47]} Rac8 {[%emt 0:01:39]} 21. Bxd5 {[%emt 0:05:52]} exd5 {[%emt 0:03:20]} 22. Be3 {[%emt 0:00:09]} d4 {[%emt 0:09:38]} 23. Bxd4 {[%emt 0:03:17]} Qc6 {[%emt 0:01:19]} 24. Rxe8+ {[%emt 0:04:31]} Rxe8 {[%emt 0:00:24]} 25. Qd1 {[%emt 0:00:21]} Bb7 {[%emt 0:08:27]} 26. f3 {[%emt 0:00:11]} Qxf3 {[%emt 0:02:25]} 27. Qxf3 {[%emt 0:00:13]} Bxf3 {[%emt 0:00:03]} 28. Kf2 {[%emt 0:03:24]} Bd5 {[%emt 0:01:25]} 29. Rc2 {[%emt 0:02:57]} a6 {[%emt 0:01:24]} 30. Rd2 {[%emt 0:02:25]} f5 {[%emt 0:04:32]} 31. Be3 {[%emt 0:00:56]} Rd8 {[%emt 0:01:22]} 32. Rd4 {[%emt 0:06:06]} Kf7 {[%emt 0:01:22]} 33. a4 {[%emt 0:00:14]} Ke6 {[%emt 0:00:32]} 34. axb5 {[%emt 0:00:12]} axb5 {[%emt 0:00:03]} 35. Rd2 {[%emt 0:01:56]} Ra8 {[%emt 0:01:31]} 36. Bd4 {[%emt 0:02:43]} Bc4 {[%emt 0:02:38]} 37. h4 {[%emt 0:00:44]} Ra1 {[%emt 0:00:37]} 38. Kf3 {[%emt 0:01:24]} h6 {[%emt 0:04:03]} 39. Kf2 {[%emt 0:03:47]} g5 {[%emt 0:01:18]} 40. hxg5 {[%emt 0:00:06]} hxg5 {[%emt 0:00:01]} 41. Be3 {[%emt 0:00:40]} Rf1+ {[%emt 0:01:54]} 42. Kg2 {[%emt 0:00:03]} f4 {[%emt 0:00:08]} 43. gxf4 {[%emt 0:00:47]} gxf4 {[%emt 0:00:01]} 44. Bd4 {[%emt 0:00:52]} Kf5 {[%emt 0:02:14]} 45. Rf2 {[%emt 0:00:33]} Re1 {[%emt 0:00:36]} 46. Rd2 {[%emt 0:01:02]} Kg4 {[%emt 0:00:22]} 47. Bf2 {[%emt 0:01:38]} Rc1 {[%emt 0:00:37]} 48. Bd4 {[%emt 0:00:45]} Bd5+ {[%emt 0:00:38]} 49. Kf2 {[%emt 0:00:12]} Rh1 {[%emt 0:00:30]} 50. Bc5 {[%emt 0:01:21]} Bc4 {[%emt 0:00:24]} 51. Kg2 {[%emt 0:02:29]} Rh3 {[%emt 0:00:07]} 52. Bd4 {[%emt 0:00:18]} Rg3+ {[%emt 0:01:06]} 53. Kf2 {[%emt 0:00:12]} Rf3+ {[%emt 0:00:10]} 54. Kg2 {[%emt 0:00:51]} Rg3+ {[%emt 0:00:39]} 55. Kf2 {[%emt 0:00:17]} f3 {[%emt 0:00:29]} 56. Ke3 {[%emt 0:00:55]} Rg1 {[%emt 0:00:35]} 57. Rf2 {[%emt 0:01:56]} Be2 {[%emt 0:00:23]} 58. Rh2 {[%emt 0:00:57]} Rd1 {[%emt 0:00:30]} 59. Ke4 {[%emt 0:04:17]} Bd3+ {[%emt 0:00:40]} 60. Ke3 {[%emt 0:00:17]} Be2 {[%emt 0:00:01]} 61. Ke4 {[%emt 0:00:24]} Kg5 {[%emt 0:01:01]} 62. Be3+ {[%emt 0:00:46]} Kf6 {[%emt 0:00:21]} 63. Bd4+ {[%emt 0:00:47]} Ke6 {[%emt 0:00:28]} 64. Rh6+ {[%emt 0:00:18]} Kd7 {[%emt 0:00:14]} 65. Rh7+ {[%emt 0:00:46]} Ke6 {[%emt 0:00:22]} 66. Rh6+ {[%emt 0:00:10]} Kf7 {[%emt 0:00:12]} 67. Rf6+ {[%emt 0:00:30]} Ke7 {[%emt 0:00:11]} 68. Rf4 {[%emt 0:01:18]} Rh1 {[%emt 0:01:22]} 69. Bc5+ {[%emt 0:01:56]} Ke6 {[%emt 0:00:25]} 70. Bd4 {[%emt 0:00:05]} Rh6 {[%emt 0:00:43]} 71. Bc5 {[%emt 0:01:27]} Kd7 {[%emt 0:00:26]} 72. Bd4 {[%emt 0:00:29]} Re6+ {[%emt 0:00:34]} 73. Be5 {[%emt 0:02:08]} Kc6 {[%emt 0:00:17]} 74. Kd4 {[%emt 0:00:22]} Rg6 {[%emt 0:00:32]} 75. Ke3 {[%emt 0:02:25]} Kd5 {[%emt 0:00:20]} 76. Bd4 {[%emt 0:00:19]} Kc4 {[%emt 0:00:41]} 77. Kd2 {[%emt 0:01:28]} Kb3 {[%emt 0:00:52]} 78. Be5 {[%emt 0:00:37]} Rg2 {[%emt 0:00:23]} 79. Bd4 {[%emt 0:00:33]} Bc4+ {[%emt 0:00:34]} 80. Kd1 {[%emt 0:00:41]} Rh2 {[%emt 0:00:33]} 81. Ke1 {[%emt 0:00:23]} Rh1+ {[%emt 0:00:18]} 82. Kd2 {[%emt 0:00:33]} Be2 {[%emt 0:00:04]} 83. Ke3 {[%emt 0:00:44]} Kc2 {[%emt 0:00:14]} 84. Kf2 {[%emt 0:00:35]} Kd3 {[%emt 0:00:21]} 85. Kg3 {[%emt 0:01:01]} Rh5 {[%emt 0:00:58]} 86. Bf6 {[%emt 0:00:35]} Rh6 {[%emt 0:00:42]} 87. Bd4 {[%emt 0:00:44]} Rg6+ {[%emt 0:00:33]} 88. Kh2 {[%emt 0:00:23]} Kd2 {[%emt 0:00:19]} 89. Kh3 {[%emt 0:00:31]} Ke1 {[%emt 0:00:22]} 90. Kh2 {[%emt 0:00:26]} Kd2 {[%emt 0:00:58]} 91. Kh3 {[%emt 0:00:18]} Ke1 {[%emt 0:00:30]} 92. Kh2 {[%emt 0:00:05]} Kf1 {[%emt 0:00:06]} 93. Rf7 {[%emt 0:00:45]} Rh6+ {[%emt 0:01:05]} 94. Kg3 {[%emt 0:00:10]} Rg6+ {[%emt 0:00:01]} 95. Kh2 {[%emt 0:00:10]} Rg2+ {[%emt 0:01:00]} 96. Kh3 {[%emt 0:00:03]} f2 {[%emt 0:00:32]} 97. Ra7 {[%emt 0:00:17]} Bg4+ {[%emt 0:00:13]} 98. Kh4 {[%emt 0:00:14]} Be6 {[%emt 0:00:16]} 99. Ra6 {[%emt 0:01:18]} Rg4+ {[%emt 0:00:39]} 100. Kh5 {[%emt 0:01:04]} Re4 {[%emt 0:00:20]} 101. Ra8 {[%emt 0:01:18]} Ke2 {[%emt 0:00:39]} 0-1